[Event "Live Chess"]
[Site "Chess.com"]
[Date "2024.06.01"]
[Round "-"]
[White "Richardallis"]
[Black "Golden_Plans"]
[Result "1-0"]
[WhiteElo "2006"]
[BlackElo "2246"]
[TimeControl "300"]
[EndTime "10:55:24 PDT"]
[Termination "Richardallis won by checkmate"]

1. d4 {[%clk 0:04:54.1]} 1... e5 {[%clk 0:04:52.1]} 2. dxe5 {[%clk 0:04:51.1]}
2... Nc6 {[%clk 0:04:51.6]} 3. f4 {[%clk 0:04:50]} 3... g5 {[%clk 0:04:49.1]} 4.
fxg5 {[%clk 0:04:46.5]} 4... Nxe5 {[%clk 0:04:47.7]} 5. Nf3 {[%clk 0:04:45.6]}
5... Nxf3+ {[%clk 0:04:46]} 6. exf3 {[%clk 0:04:44.5]} 6... h6 {[%clk 0:04:45]}
7. Bc4 {[%clk 0:04:31.5]} 7... hxg5 {[%clk 0:04:41.1]} 8. Qd5 {[%clk 0:04:30.2]}
8... Qe7+ {[%clk 0:04:35.3]} 9. Kd1 {[%clk 0:04:15.2]} 9... Qd6 {[%clk
0:04:19.2]} 10. Re1+ {[%clk 0:04:12.7]} 10... Kd8 {[%clk 0:04:10.5]} 11. Qxd6
{[%clk 0:04:04.9]} 11... Bxd6 {[%clk 0:04:09.2]} 12. Bxf7 {[%clk 0:04:04.3]}
12... Rxh2 {[%clk 0:04:05.4]} 13. Bxg8 {[%clk 0:03:59.8]} 13... Rxg2 {[%clk
0:03:57]} 14. Bf7 {[%clk 0:03:53.3]} 14... Be7 {[%clk 0:03:44.4]} 15. Nc3 {[%clk
0:03:47.7]} 15... d6 {[%clk 0:03:43.3]} 16. Be3 {[%clk 0:03:44]} 16... Bf5
{[%clk 0:03:40.8]} 17. Rg1 {[%clk 0:03:42.3]} 17... Bxc2+ {[%clk 0:03:37.3]} 18.
Kc1 {[%clk 0:03:40.8]} 18... Rxg1+ {[%clk 0:03:29.2]} 19. Bxg1 {[%clk
0:03:39.9]} 19... Bf5 {[%clk 0:03:28.8]} 20. Ne4 {[%clk 0:03:38]} 20... g4
{[%clk 0:03:22.9]} 21. Ng3 {[%clk 0:03:27.6]} 21... Bg5+ {[%clk 0:03:18]} 22.
Kd1 {[%clk 0:03:26.5]} 22... Bd7 {[%clk 0:03:15]} 23. fxg4 {[%clk 0:03:24.6]}
23... Bxg4+ {[%clk 0:03:14.9]} 24. Kc2 {[%clk 0:03:20.6]} 24... Bh4 {[%clk
0:03:10.6]} 25. Bf2 {[%clk 0:03:04.7]} 25... Kd7 {[%clk 0:03:07.6]} 26. Rh1
{[%clk 0:03:02.7]} 26... Rf8 {[%clk 0:02:57.9]} 27. Rxh4 {[%clk 0:03:00.9]}
27... Rxf7 {[%clk 0:02:55.6]} 28. Bxa7 {[%clk 0:02:55.6]} 28... Be6 {[%clk
0:02:47]} 29. Bd4 {[%clk 0:02:51.3]} 29... c5 {[%clk 0:02:37.5]} 30. Bc3 {[%clk
0:02:49.8]} 30... Rf3 {[%clk 0:02:34.6]} 31. Ne2 {[%clk 0:02:35.6]} 31... Rf2
{[%clk 0:02:24.5]} 32. Kd2 {[%clk 0:02:23.5]} 32... Bxa2 {[%clk 0:02:22.6]} 33.
Ke3 {[%clk 0:02:16]} 33... Rg2 {[%clk 0:02:13.9]} 34. b4 {[%clk 0:02:07.7]}
34... Bc4 {[%clk 0:02:07.9]} 35. Rxc4 {[%clk 0:01:54]} 35... b5 {[%clk
0:02:04.8]} 36. Rh4 {[%clk 0:01:47.7]} 36... Kc6 {[%clk 0:01:58.4]} 37. Rh6
{[%clk 0:01:42.5]} 37... Rg5 {[%clk 0:01:54.3]} 38. Kd3 {[%clk 0:01:37.3]} 38...
c4+ {[%clk 0:01:51.2]} 39. Ke3 {[%clk 0:01:34.2]} 39... Kd5 {[%clk 0:01:46]} 40.
Rh5 {[%clk 0:01:29.9]} 40... Rxh5 {[%clk 0:01:42.2]} 41. Nf4+ {[%clk 0:01:28.3]}
41... Kc6 {[%clk 0:01:40.2]} 42. Nxh5 {[%clk 0:01:27.5]} 42... Kd7 {[%clk
0:01:37.5]} 43. Kd4 {[%clk 0:01:26.2]} 43... Ke6 {[%clk 0:01:36.2]} 44. Nf4+
{[%clk 0:01:25.2]} 44... Kf5 {[%clk 0:01:34.7]} 45. Nd5 {[%clk 0:01:24.3]} 45...
Ke6 {[%clk 0:01:30.1]} 46. Nc7+ {[%clk 0:01:22.9]} 46... Kd7 {[%clk 0:01:27.9]}
47. Nxb5 {[%clk 0:01:22.4]} 47... Kc6 {[%clk 0:01:27.5]} 48. Na3 {[%clk
0:01:19.5]} 48... d5 {[%clk 0:01:26.5]} 49. b5+ {[%clk 0:01:17.2]} 49... Kd6
{[%clk 0:01:25.8]} 50. Bb4+ {[%clk 0:01:15.8]} 50... Ke6 {[%clk 0:01:25]} 51. b6
{[%clk 0:01:13.9]} 51... Kd7 {[%clk 0:01:22.7]} 52. Kxd5 {[%clk 0:01:12.9]}
52... c3 {[%clk 0:01:21.8]} 53. Bxc3 {[%clk 0:01:11.9]} 53... Kc8 {[%clk
0:01:21.7]} 54. Kc6 {[%clk 0:01:10.7]} 54... Kb8 {[%clk 0:01:21]} 55. Nb5 {[%clk
0:01:07.1]} 55... Kc8 {[%clk 0:01:18.2]} 56. b7+ {[%clk 0:01:02.3]} 56... Kd8
{[%clk 0:01:17.4]} 57. b8=Q+ {[%clk 0:00:58.9]} 57... Ke7 {[%clk 0:01:17.3]} 58.
Qd6+ {[%clk 0:00:56.9]} 58... Kf7 {[%clk 0:01:16.7]} 59. Qf6+ {[%clk 0:00:55.2]}
59... Kg8 {[%clk 0:01:16.6]} 60. Qg7# {[%clk 0:00:54]} 1-0

[Event "Live Chess"]
[Site "Chess.com"]
[Date "2024.06.01"]
[Round "-"]
[White "gmnorfolk"]
[Black "LL220284LL"]
[Result "0-1"]
[WhiteElo "2126"]
[BlackElo "2583"]
[TimeControl "300"]
[EndTime "10:55:31 PDT"]
[Termination "LL220284LL won on time"]

1. c4 {[%clk 0:04:56.2]} 1... c6 {[%clk 0:04:58.9]} 2. d4 {[%clk 0:04:45.2]}
2... g6 {[%clk 0:04:58.8]} 3. Nf3 {[%clk 0:04:43.6]} 3... Bg7 {[%clk 0:04:58.3]}
4. g3 {[%clk 0:04:41]} 4... d6 {[%clk 0:04:57.8]} 5. Bg2 {[%clk 0:04:40.4]} 5...
Nd7 {[%clk 0:04:56.2]} 6. O-O {[%clk 0:04:40.2]} 6... Ngf6 {[%clk 0:04:53]} 7.
Nc3 {[%clk 0:04:40.1]} 7... O-O {[%clk 0:04:50.4]} 8. e4 {[%clk 0:04:37.9]} 8...
e5 {[%clk 0:04:47.5]} 9. Re1 {[%clk 0:04:35]} 9... Qc7 {[%clk 0:04:45.2]} 10. d5
{[%clk 0:04:29.6]} 10... c5 {[%clk 0:04:35.3]} 11. Nb5 {[%clk 0:04:27.6]} 11...
Qb8 {[%clk 0:04:34.5]} 12. a3 {[%clk 0:04:26.3]} 12... a6 {[%clk 0:04:30.6]} 13.
Nc3 {[%clk 0:04:25]} 13... Qc7 {[%clk 0:04:29.8]} 14. Rb1 {[%clk 0:04:20.9]}
14... Re8 {[%clk 0:04:26.2]} 15. Bf1 {[%clk 0:04:06.6]} 15... Nf8 {[%clk
0:04:23.8]} 16. b4 {[%clk 0:04:04.1]} 16... N8d7 {[%clk 0:04:19]} 17. Na4 {[%clk
0:03:58.4]} 17... b6 {[%clk 0:04:15.6]} 18. h3 {[%clk 0:03:48.5]} 18... Rb8
{[%clk 0:04:10.3]} 19. bxc5 {[%clk 0:03:41.7]} 19... Nxc5 {[%clk 0:04:06.2]} 20.
Nxc5 {[%clk 0:03:36.8]} 20... bxc5 {[%clk 0:04:06.1]} 21. Bd2 {[%clk 0:03:27.7]}
21... Bd7 {[%clk 0:04:04.9]} 22. Qc2 {[%clk 0:03:22.3]} 22... Rec8 {[%clk
0:03:58.5]} 23. Rxb8 {[%clk 0:03:15.5]} 23... Rxb8 {[%clk 0:03:57.3]} 24. Rb1
{[%clk 0:03:14.6]} 24... Qc8 {[%clk 0:03:54.1]} 25. Kh2 {[%clk 0:03:06.3]} 25...
Qe8 {[%clk 0:03:42.8]} 26. Bd3 {[%clk 0:02:51.4]} 26... h6 {[%clk 0:03:37.1]}
27. Ba5 {[%clk 0:02:33]} 27... Qc8 {[%clk 0:03:31.7]} 28. Ng1 {[%clk 0:02:24.6]}
28... Kh7 {[%clk 0:03:26.5]} 29. f3 {[%clk 0:02:13.1]} 29... Nh5 {[%clk
0:03:21.2]} 30. Be1 {[%clk 0:02:05.1]} 30... Bf6 {[%clk 0:03:17.5]} 31. Rxb8
{[%clk 0:01:56.5]} 31... Qxb8 {[%clk 0:03:16.7]} 32. Qb1 {[%clk 0:01:55.7]}
32... Qxb1 {[%clk 0:03:15.1]} 33. Bxb1 {[%clk 0:01:54.8]} 33... Bd8 {[%clk
0:03:13.5]} 34. Ne2 {[%clk 0:01:51.1]} 34... Kg7 {[%clk 0:03:09.6]} 35. Bc3
{[%clk 0:01:47]} 35... Kf8 {[%clk 0:03:03.1]} 36. f4 {[%clk 0:01:38.7]} 36...
exf4 {[%clk 0:03:00.7]} 37. gxf4 {[%clk 0:01:34.1]} 37... Ba4 {[%clk 0:02:59.4]}
38. e5 {[%clk 0:01:28.9]} 38... Be7 {[%clk 0:02:55.6]} 39. f5 {[%clk 0:01:21.5]}
39... gxf5 {[%clk 0:02:34]} 40. Bxf5 {[%clk 0:01:18.6]} 40... dxe5 {[%clk
0:02:30.4]} 41. Bxe5 {[%clk 0:01:17.4]} 41... Bf6 {[%clk 0:02:28]} 42. Bd6+
{[%clk 0:00:58.8]} 42... Be7 {[%clk 0:02:26.8]} 43. Bc7 {[%clk 0:00:57]} 43...
Ke8 {[%clk 0:02:17.4]} 44. Bc8 {[%clk 0:00:45.2]} 44... Bd1 {[%clk 0:02:10.7]}
45. Nc3 {[%clk 0:00:40.5]} 45... Bb3 {[%clk 0:02:07.1]} 46. d6 {[%clk
0:00:39.2]} 46... Bxc4 {[%clk 0:02:05.9]} 47. d7+ {[%clk 0:00:28.3]} 47... Kf8
{[%clk 0:02:04.6]} 48. Kg1 {[%clk 0:00:19.8]} 48... Be6 {[%clk 0:01:55.8]} 49.
Ne4 {[%clk 0:00:09.4]} 49... c4 {[%clk 0:01:46.9]} 50. Nc3 {[%clk 0:00:05.4]}
50... Nf6 {[%clk 0:01:43.7]} 51. Kf2 {[%clk 0:00:02.7]} 51... Bxd7 {[%clk
0:01:41.8]} 52. Bxd7 {[%clk 0:00:01.2]} 52... Nxd7 {[%clk 0:01:41.7]} 53. Ba5
{[%clk 0:00:00.4]} 53... Bc5+ {[%clk 0:01:40.7]} 0-1

[Event "Live Chess"]
[Site "Chess.com"]
[Date "2024.06.01"]
[Round "-"]
[White "JohanKjeldahl"]
[Black "Zhevzh1k7"]
[Result "1-0"]
[WhiteElo "1852"]
[BlackElo "1074"]
[TimeControl "300"]
[EndTime "10:55:35 PDT"]
[Termination "JohanKjeldahl won by resignation"]

1. e4 {[%clk 0:04:56.6]} 1... c6 {[%clk 0:04:58.4]} 2. d4 {[%clk 0:04:54]} 2...
d5 {[%clk 0:04:56.6]} 3. Nc3 {[%clk 0:04:52.8]} 3... dxe4 {[%clk 0:04:53.4]} 4.
Nxe4 {[%clk 0:04:51.6]} 4... Bf5 {[%clk 0:04:53.3]} 5. Ng3 {[%clk 0:04:50.3]}
5... Bg6 {[%clk 0:04:52.7]} 6. Nf3 {[%clk 0:04:48.9]} 6... Nd7 {[%clk
0:04:50.6]} 7. h4 {[%clk 0:04:47.6]} 7... h6 {[%clk 0:04:49.5]} 8. h5 {[%clk
0:04:46]} 8... Bh7 {[%clk 0:04:48.4]} 9. Bd3 {[%clk 0:04:44.7]} 9... Ngf6 {[%clk
0:04:47]} 10. c3 {[%clk 0:04:40.3]} 10... e6 {[%clk 0:04:43.6]} 11. Bxh7 {[%clk
0:04:38.1]} 11... Nxh7 {[%clk 0:04:42]} 12. Bf4 {[%clk 0:04:34.4]} 12... Ndf6
{[%clk 0:04:38.5]} 13. Qb3 {[%clk 0:04:28.3]} 13... Qb6 {[%clk 0:04:33.1]} 14.
Ne5 {[%clk 0:04:18.1]} 14... Qxb3 {[%clk 0:04:29.4]} 15. axb3 {[%clk 0:04:16.8]}
15... Bd6 {[%clk 0:04:23.9]} 16. Kd2 {[%clk 0:04:10]} 16... Nd5 {[%clk 0:04:15]}
17. Ne2 {[%clk 0:03:58.8]} 17... f6 {[%clk 0:04:05.7]} 18. Ng6 {[%clk
0:03:55.5]} 18... Bxf4+ {[%clk 0:03:56]} 19. Nexf4 {[%clk 0:03:53.7]} 19... Rg8
{[%clk 0:03:47.4]} 20. Nxe6 {[%clk 0:03:48.2]} 20... Kf7 {[%clk 0:03:42.5]} 21.
Nc5 {[%clk 0:03:42.4]} 21... b6 {[%clk 0:03:39.7]} 22. Ne4 {[%clk 0:03:36.4]}
22... f5 {[%clk 0:03:35.5]} 23. Nd6+ {[%clk 0:03:31.8]} 23... Kf6 {[%clk
0:03:32.7]} 24. c4 {[%clk 0:03:21.2]} 24... Ne7 {[%clk 0:03:26.1]} 25. Nxe7
{[%clk 0:03:19.2]} 25... Kxe7 {[%clk 0:03:24.9]} 26. Nxf5+ {[%clk 0:03:17.3]}
26... Kf6 {[%clk 0:03:22.9]} 27. g4 {[%clk 0:03:16.1]} 27... g6 {[%clk 0:03:20]}
28. hxg6 {[%clk 0:03:13.4]} 28... Rxg6 {[%clk 0:03:18.9]} 29. f3 {[%clk
0:03:11.7]} 29... Ng5 {[%clk 0:03:15.6]} 30. Rhf1 {[%clk 0:03:05.8]} 30... c5
{[%clk 0:03:08.7]} 31. d5 {[%clk 0:03:02.8]} 31... Nf7 {[%clk 0:03:04.7]} 32.
Rfe1 {[%clk 0:02:57.3]} 32... h5 {[%clk 0:02:55.7]} 33. Ne7 {[%clk 0:02:51.5]}
33... Rg5 {[%clk 0:02:44.4]} 34. Re6+ {[%clk 0:02:49.7]} 34... Kg7 {[%clk
0:02:43.2]} 35. Nf5+ {[%clk 0:02:47.2]} 35... Rxf5 {[%clk 0:02:35.6]} 36. gxf5
{[%clk 0:02:44.9]} 36... Rh8 {[%clk 0:02:33.2]} 37. Rxa7 {[%clk 0:02:41.1]}
37... h4 {[%clk 0:02:30.6]} 38. Rg6+ {[%clk 0:02:39.9]} 38... Kf8 {[%clk
0:02:27.1]} 39. Rf6 {[%clk 0:02:33.1]} 39... Rh7 {[%clk 0:02:25.8]} 40. d6
{[%clk 0:02:23]} 40... Ke8 {[%clk 0:02:19.6]} 41. d7+ {[%clk 0:02:18.5]} 41...
Kd8 {[%clk 0:02:11]} 42. Re6 {[%clk 0:02:06.1]} 42... Rh8 {[%clk 0:02:03.6]} 43.
Rxb6 {[%clk 0:02:02.9]} 43... h3 {[%clk 0:01:56.7]} 44. Rb8+ {[%clk 0:02:01]}
44... Ke7 {[%clk 0:01:55.2]} 45. Rxh8 {[%clk 0:01:59.4]} 45... Nxh8 {[%clk
0:01:54.1]} 46. d8=Q+ {[%clk 0:01:48.4]} 46... Kxd8 {[%clk 0:01:52.1]} 47. Ra8+
{[%clk 0:01:47.5]} 47... Ke7 {[%clk 0:01:50.1]} 48. Rxh8 {[%clk 0:01:46.1]}
48... Kf6 {[%clk 0:01:50]} 49. Ke3 {[%clk 0:01:44.2]} 49... Kxf5 {[%clk
0:01:49]} 50. Rxh3 {[%clk 0:01:42.2]} 50... Ke5 {[%clk 0:01:48.1]} 51. Rh5+
{[%clk 0:01:40.2]} 51... Kf6 {[%clk 0:01:47]} 52. Kf4 {[%clk 0:01:39.1]} 1-0

[Event "Live Chess"]
[Site "Chess.com"]
[Date "2024.06.01"]
[Round "-"]
[White "elephantgerrald"]
[Black "Sokolik_UA"]
[Result "0-1"]
[WhiteElo "740"]
[BlackElo "804"]
[TimeControl "300"]
[EndTime "10:55:40 PDT"]
[Termination "Sokolik_UA won by checkmate"]

1. e4 {[%clk 0:04:56.1]} 1... e6 {[%clk 0:04:58.9]} 2. d4 {[%clk 0:04:54.6]}
2... d5 {[%clk 0:04:58.1]} 3. e5 {[%clk 0:04:53.8]} 3... c5 {[%clk 0:04:56.7]}
4. dxc5 {[%clk 0:04:52.4]} 4... Bxc5 {[%clk 0:04:54]} 5. Nf3 {[%clk 0:04:48.2]}
5... Bd7 {[%clk 0:04:50.3]} 6. Nc3 {[%clk 0:04:43.7]} 6... Bc6 {[%clk
0:04:49.8]} 7. Bd3 {[%clk 0:04:33.9]} 7... Nd7 {[%clk 0:04:46.5]} 8. O-O {[%clk
0:04:31.6]} 8... Qe7 {[%clk 0:04:45]} 9. Re1 {[%clk 0:04:23.2]} 9... O-O-O
{[%clk 0:04:42.8]} 10. Be3 {[%clk 0:04:19.9]} 10... Bxe3 {[%clk 0:04:39.4]} 11.
Rxe3 {[%clk 0:04:18.2]} 11... h5 {[%clk 0:04:38.2]} 12. Qe2 {[%clk 0:04:11.4]}
12... h4 {[%clk 0:04:37.2]} 13. Ba6 {[%clk 0:04:09.4]} 13... h3 {[%clk
0:04:30.9]} 14. g3 {[%clk 0:03:38]} 14... f5 {[%clk 0:04:28.4]} 15. Nxd5 {[%clk
0:03:30]} 15... Bxd5 {[%clk 0:04:24.9]} 16. Rc3+ {[%clk 0:03:27.3]} 16... Bc6
{[%clk 0:04:23]} 17. Bxb7+ {[%clk 0:03:21.9]} 17... Kxb7 {[%clk 0:04:21.7]} 18.
Rb3+ {[%clk 0:03:19.2]} 18... Kc7 {[%clk 0:04:21]} 19. Qa6 {[%clk 0:03:13.1]}
19... Rb8 {[%clk 0:04:10.9]} 20. Qxa7+ {[%clk 0:03:10.7]} 20... Rb7 {[%clk
0:04:09.2]} 21. Rxb7+ {[%clk 0:03:08.2]} 21... Bxb7 {[%clk 0:04:08.3]} 22. Rd1
{[%clk 0:02:58.6]} 22... Nxe5 {[%clk 0:04:00.9]} 23. Nxe5 {[%clk 0:02:55.1]}
23... Qb4 {[%clk 0:03:43.9]} 24. Rd7+ {[%clk 0:02:51.2]} 24... Kc8 {[%clk
0:03:40.7]} 25. c3 {[%clk 0:02:27.1]} 25... Qe4 {[%clk 0:03:31.8]} 26. Qc5+
{[%clk 0:02:20.4]} 26... Bc6 {[%clk 0:03:29.8]} 27. f3 {[%clk 0:02:06.4]} 27...
Qe1# {[%clk 0:03:26.7]} 0-1

[Event "Live Chess"]
[Site "Chess.com"]
[Date "2024.06.01"]
[Round "-"]
[White "kylet1990"]
[Black "NeilDruggan73"]
[Result "1-0"]
[WhiteElo "740"]
[BlackElo "1729"]
[TimeControl "300"]
[EndTime "10:55:41 PDT"]
[Termination "kylet1990 won by checkmate"]

1. e4 {[%clk 0:04:57.8]} 1... d6 {[%clk 0:04:55.2]} 2. d4 {[%clk 0:04:51.6]}
2... Nf6 {[%clk 0:04:53.7]} 3. Nc3 {[%clk 0:04:48.1]} 3... g6 {[%clk 0:04:52.5]}
4. e5 {[%clk 0:04:46]} 4... dxe5 {[%clk 0:04:50.4]} 5. dxe5 {[%clk 0:04:44]}
5... Qxd1+ {[%clk 0:04:49]} 6. Nxd1 {[%clk 0:04:42.7]} 6... Nd5 {[%clk
0:04:42.8]} 7. Bc4 {[%clk 0:04:39.3]} 7... Nb4 {[%clk 0:04:34.1]} 8. a3 {[%clk
0:04:31.3]} 8... Be6 {[%clk 0:04:29.7]} 9. Bxe6 {[%clk 0:04:26.6]} 9... Nxc2+
{[%clk 0:04:28.2]} 10. Kd2 {[%clk 0:04:21.9]} 10... Nxa1 {[%clk 0:04:27.8]} 11.
Ba2 {[%clk 0:04:08.9]} 11... Nc6 {[%clk 0:04:26.7]} 12. Kc3 {[%clk 0:03:59.9]}
12... Nxe5 {[%clk 0:04:19.9]} 13. Nf3 {[%clk 0:03:55.6]} 13... Nc6 {[%clk
0:04:16.8]} 14. Ne3 {[%clk 0:03:46.3]} 14... Rd8 {[%clk 0:04:15.1]} 15. Bd2
{[%clk 0:03:41.1]} 15... Bg7+ {[%clk 0:04:11.2]} 16. Kc4 {[%clk 0:03:29.5]}
16... Bxb2 {[%clk 0:03:53.1]} 17. Bc3 {[%clk 0:03:17.1]} 17... Bxa3 {[%clk
0:03:30.1]} 18. Rxa1 {[%clk 0:03:10.8]} 18... O-O {[%clk 0:03:26.4]} 19. Kb3
{[%clk 0:02:59.4]} 19... Bd6 {[%clk 0:03:23.5]} 20. Ng5 {[%clk 0:02:49.3]} 20...
h6 {[%clk 0:03:19.8]} 21. Ne4 {[%clk 0:02:43.3]} 21... Bf4 {[%clk 0:03:17.3]}
22. Ka3 {[%clk 0:02:27.4]} 22... e5 {[%clk 0:02:57.3]} 23. g3 {[%clk 0:02:21.9]}
23... Bxe3 {[%clk 0:02:54.1]} 24. fxe3 {[%clk 0:02:18.8]} 24... b5 {[%clk
0:02:53.8]} 25. Bd2 {[%clk 0:02:10.7]} 25... b4+ {[%clk 0:02:48.6]} 26. Bxb4
{[%clk 0:02:04.8]} 26... Rd3+ {[%clk 0:02:39]} 27. Bb3 {[%clk 0:01:57]} 27...
Rxe3 {[%clk 0:02:34.1]} 28. Bxf8 {[%clk 0:01:52.8]} 28... Kxf8 {[%clk
0:02:30.1]} 29. Nc5 {[%clk 0:01:35.3]} 29... Nd4 {[%clk 0:02:27.1]} 30. Rb1
{[%clk 0:01:27.6]} 30... a5 {[%clk 0:02:23.5]} 31. Ka4 {[%clk 0:01:16.8]} 31...
Ke7 {[%clk 0:02:20.1]} 32. Na6 {[%clk 0:01:01.4]} 32... c6 {[%clk 0:01:58.9]}
33. Bd1 {[%clk 0:00:52]} 33... Re4 {[%clk 0:01:53.8]} 34. Rb7+ {[%clk
0:00:47.6]} 34... Kd6 {[%clk 0:01:51.5]} 35. Kxa5 {[%clk 0:00:43.8]} 35... Re1
{[%clk 0:01:45.8]} 36. Bg4 {[%clk 0:00:17.4]} 36... Ra1+ {[%clk 0:01:43.7]} 37.
Kb6 {[%clk 0:00:15.7]} 37... f5 {[%clk 0:01:41.9]} 38. Nb8 {[%clk 0:00:11.2]}
38... f4 {[%clk 0:01:38]} 39. Rd7# {[%clk 0:00:08.1]} 1-0

[Event "Live Chess"]
[Site "Chess.com"]
[Date "2024.06.01"]
[Round "-"]
[White "chess5013"]
[Black "booktrunk"]
[Result "1-0"]
[WhiteElo "1250"]
[BlackElo "1389"]
[TimeControl "300"]
[EndTime "10:55:55 PDT"]
[Termination "chess5013 won by checkmate"]

1. d4 {[%clk 0:04:58.2]} 1... b6 {[%clk 0:04:57.1]} 2. e4 {[%clk 0:04:56.3]}
2... e6 {[%clk 0:04:49]} 3. Nc3 {[%clk 0:04:54.7]} 3... Nf6 {[%clk 0:04:40.5]}
4. Nf3 {[%clk 0:04:49.1]} 4... Bb7 {[%clk 0:04:38.9]} 5. d5 {[%clk 0:04:44.4]}
5... exd5 {[%clk 0:04:37.1]} 6. exd5 {[%clk 0:04:38.9]} 6... Qe7+ {[%clk
0:04:35.7]} 7. Be2 {[%clk 0:04:37.4]} 7... Qd6 {[%clk 0:04:30.3]} 8. Bc4 {[%clk
0:04:23.2]} 8... a6 {[%clk 0:04:22.3]} 9. O-O {[%clk 0:04:20.8]} 9... Be7 {[%clk
0:04:20]} 10. Bg5 {[%clk 0:04:17.6]} 10... O-O {[%clk 0:04:17.5]} 11. Bxf6
{[%clk 0:04:16.1]} 11... Bxf6 {[%clk 0:04:15]} 12. Re1 {[%clk 0:04:04.9]} 12...
h6 {[%clk 0:04:03.4]} 13. Qd3 {[%clk 0:04:00]} 13... b5 {[%clk 0:03:48.1]} 14.
Bb3 {[%clk 0:03:56.4]} 14... Qf4 {[%clk 0:03:38.8]} 15. Re4 {[%clk 0:03:41]}
15... Qd6 {[%clk 0:03:36.3]} 16. Re2 {[%clk 0:03:30.4]} 16... c6 {[%clk
0:03:33.3]} 17. Ne4 {[%clk 0:03:26.4]} 17... Qf4 {[%clk 0:03:22.6]} 18. Nxf6+
{[%clk 0:03:21.6]} 18... Qxf6 {[%clk 0:03:20.2]} 19. d6 {[%clk 0:03:02.8]} 19...
c5 {[%clk 0:03:08.1]} 20. c4 {[%clk 0:02:48.1]} 20... b4 {[%clk 0:03:02.9]} 21.
Re7 {[%clk 0:02:40]} 21... Bc8 {[%clk 0:02:58.7]} 22. Ba4 {[%clk 0:02:36.8]}
22... Qxb2 {[%clk 0:02:45.4]} 23. Rae1 {[%clk 0:02:30.8]} 23... Qxa2 {[%clk
0:02:26.3]} 24. Bc2 {[%clk 0:02:29.5]} 24... Nc6 {[%clk 0:02:20.5]} 25. Qh7#
{[%clk 0:02:27]} 1-0

[Event "Live Chess"]
[Site "Chess.com"]
[Date "2024.06.01"]
[Round "-"]
[White "Grace6363"]
[Black "blunderabit"]
[Result "0-1"]
[WhiteElo "1142"]
[BlackElo "1803"]
[TimeControl "300"]
[EndTime "10:56:11 PDT"]
[Termination "blunderabit won by checkmate"]

1. d4 {[%clk 0:04:57.1]} 1... d5 {[%clk 0:04:57.6]} 2. c4 {[%clk 0:04:56.3]}
2... dxc4 {[%clk 0:04:56.1]} 3. e4 {[%clk 0:04:55.2]} 3... Nf6 {[%clk
0:04:53.9]} 4. e5 {[%clk 0:04:53.8]} 4... Nd5 {[%clk 0:04:52.8]} 5. Bxc4 {[%clk
0:04:52.7]} 5... Nb6 {[%clk 0:04:49.9]} 6. Bb3 {[%clk 0:04:50]} 6... Nc6 {[%clk
0:04:46.4]} 7. Nf3 {[%clk 0:04:47.3]} 7... Bf5 {[%clk 0:04:37.7]} 8. Nc3 {[%clk
0:04:44.9]} 8... e6 {[%clk 0:04:35.3]} 9. O-O {[%clk 0:04:41.5]} 9... Nb4 {[%clk
0:04:31.6]} 10. a3 {[%clk 0:04:29.5]} 10... N4d5 {[%clk 0:04:29.4]} 11. Nxd5
{[%clk 0:04:27.6]} 11... Nxd5 {[%clk 0:04:27.6]} 12. Bd2 {[%clk 0:04:16.4]}
12... c6 {[%clk 0:04:14.4]} 13. Rc1 {[%clk 0:04:13.3]} 13... Be7 {[%clk
0:04:06.2]} 14. Bxd5 {[%clk 0:04:07.2]} 14... Qxd5 {[%clk 0:04:02.9]} 15. Qe2
{[%clk 0:03:58.4]} 15... O-O {[%clk 0:03:57.8]} 16. Qc4 {[%clk 0:03:55.2]} 16...
Be4 {[%clk 0:03:47.9]} 17. Qxd5 {[%clk 0:03:53.7]} 17... Bxd5 {[%clk 0:03:44.3]}
18. Rc2 {[%clk 0:03:37.5]} 18... f5 {[%clk 0:03:38.9]} 19. Ne1 {[%clk
0:03:33.1]} 19... g5 {[%clk 0:03:34.4]} 20. f3 {[%clk 0:03:31.7]} 20... h5
{[%clk 0:03:30.2]} 21. g3 {[%clk 0:03:28.7]} 21... g4 {[%clk 0:03:27.2]} 22.
fxg4 {[%clk 0:03:22.7]} 22... hxg4 {[%clk 0:03:25.1]} 23. Nd3 {[%clk 0:03:18.5]}
23... Kf7 {[%clk 0:03:16.3]} 24. Nf4 {[%clk 0:03:16.9]} 24... Bf3 {[%clk
0:03:11.3]} 25. Bb4 {[%clk 0:03:01.9]} 25... Bxb4 {[%clk 0:03:03]} 26. axb4
{[%clk 0:03:01.1]} 26... a6 {[%clk 0:03:02.3]} 27. d5 {[%clk 0:02:47.2]} 27...
exd5 {[%clk 0:02:50.3]} 28. e6+ {[%clk 0:02:45.9]} 28... Ke7 {[%clk 0:02:47.4]}
29. Ng6+ {[%clk 0:02:40.4]} 29... Kxe6 {[%clk 0:02:43.1]} 30. Nxf8+ {[%clk
0:02:39.2]} 30... Rxf8 {[%clk 0:02:42.4]} 31. Re1+ {[%clk 0:02:37.4]} 31... Kf6
{[%clk 0:02:39.9]} 32. Kf2 {[%clk 0:02:23.9]} 32... Rh8 {[%clk 0:02:24.2]} 33.
Kg1 {[%clk 0:02:20.3]} 33... Rh7 {[%clk 0:02:20.2]} 34. Rc3 {[%clk 0:02:16.5]}
34... Re7 {[%clk 0:01:53.4]} 35. Rxe7 {[%clk 0:02:11.9]} 35... Kxe7 {[%clk
0:01:52.6]} 36. Re3+ {[%clk 0:02:11.3]} 36... Be4 {[%clk 0:01:51.2]} 37. Kf2
{[%clk 0:02:03.6]} 37... d4 {[%clk 0:01:44.9]} 38. Rb3 {[%clk 0:01:56.9]} 38...
Kd6 {[%clk 0:01:42]} 39. Ke2 {[%clk 0:01:54.2]} 39... Kd5 {[%clk 0:01:39.3]} 40.
Kd2 {[%clk 0:01:45.9]} 40... Kc4 {[%clk 0:01:31.3]} 41. Ra3 {[%clk 0:01:40.4]}
41... Kxb4 {[%clk 0:01:29.7]} 42. Kc1 {[%clk 0:01:39.2]} 42... c5 {[%clk
0:01:20.5]} 43. Kd2 {[%clk 0:01:31.4]} 43... a5 {[%clk 0:01:03.9]} 44. Kc1
{[%clk 0:01:08.8]} 44... b6 {[%clk 0:01:00.6]} 45. Kd2 {[%clk 0:01:01]} 45... c4
{[%clk 0:00:49.1]} 46. Ra1 {[%clk 0:00:56.6]} 46... c3+ {[%clk 0:00:44]} 47.
bxc3+ {[%clk 0:00:54.7]} 47... dxc3+ {[%clk 0:00:43.3]} 48. Kc1 {[%clk
0:00:53.2]} 48... c2 {[%clk 0:00:39.1]} 49. Ra2 {[%clk 0:00:47.4]} 49... a4
{[%clk 0:00:32.5]} 50. Rb2+ {[%clk 0:00:46]} 50... Kc5 {[%clk 0:00:27.9]} 51.
Ra2 {[%clk 0:00:40.8]} 51... b5 {[%clk 0:00:25.6]} 52. Ra3 {[%clk 0:00:30.4]}
52... Kc4 {[%clk 0:00:19.9]} 53. Re3 {[%clk 0:00:26]} 53... b4 {[%clk
0:00:15.1]} 54. Re1 {[%clk 0:00:20.1]} 54... a3 {[%clk 0:00:13.5]} 55. Re3
{[%clk 0:00:13.6]} 55... b3 {[%clk 0:00:11.1]} 56. Re2 {[%clk 0:00:09.9]} 56...
b2+ {[%clk 0:00:08.4]} 57. Kd2 {[%clk 0:00:07.2]} 57... c1=Q# {[%clk 0:00:07.3]}
0-1